fUST/lending_fUST_20260118
["ID","MTS","AMOUNT","RATE_DAILY","PERIOD"]
[402558039,1768707049843,-800.02,0.00017808,2]
[402558041,1768707049852,-541.97,0.00017808,2]
[402558043,1768707049862,-500.0,0.00017808,2]
[402558045,1768707049871,-500.0,0.00017808,2]
[402558047,1768707049882,-600.3137664,0.00017808,2]
[402558049,1768707049892,-500.0,0.00017808,2]
[402558051,1768707049901,-500.0,0.00017808,2]
[402558053,1768707049911,-500.0,0.00017808,2]
[402558055,1768707049920,-530.01,0.00017808,2]
[402558057,1768707049929,-524.48,0.00017808,2]
[402558059,1768707049939,-500.0,0.00017808,2]
[402558060,1768707049948,-500.0,0.00017808,2]
[402558062,1768707049957,-500.0,0.00017808,2]
[402558064,1768707049966,-972.64,0.00017808,2]
[402558066,1768707049975,-500.0,0.00017808,2]
[402558068,1768707049985,-500.0,0.00017808,2]
[402558070,1768707049994,-500.0,0.00017808,2]
[402558072,1768707050005,-500.0,0.00017808,2]
[402558074,1768707050014,-500.0,0.00017808,2]
[402558076,1768707050023,-1106.34,0.00017808,2]
[402558078,1768707050033,-732.0,0.00017808,2]
[402558080,1768707050043,-500.0,0.00017808,2]
[402558082,1768707050052,-500.0,0.00017808,2]
[402558084,1768707050061,-500.0,0.00017808,2]
[402558086,1768707050070,-756.25,0.00017808,2]
[402558088,1768707050080,-500.0,0.00017808,2]
[402558090,1768707050089,-500.0,0.00017808,2]
[402558091,1768707050098,-622.13,0.00017808,2]
[402558092,1768707050107,-825.76,0.00017808,2]
[402558093,1768707050116,-551.16,0.00017808,2]
[402558094,1768707050126,-500.0,0.00017808,2]
[402558095,1768707050135,-500.0,0.00017808,2]
[402558096,1768707050144,-500.0,0.00017808,2]
[402558097,1768707050153,-636.41,0.00017808,2]
[402558098,1768707050162,-500.0,0.00017808,2]
[402558099,1768707050171,-500.0,0.00017808,2]
[402558100,1768707050181,-993.56,0.00017808,2]
[402558101,1768707050190,-500.0,0.00017808,2]
[402558102,1768707050200,-843.05,0.00017808,2]
[402558103,1768707050209,-500.0,0.00017808,2]
[402558104,1768707050218,-500.0,0.00017808,2]
[402558106,1768707050227,-500.0,0.00017808,2]
[402558108,1768707050236,-855.04,0.00017808,2]
[402558110,1768707050245,-500.0,0.00017808,2]
[402558112,1768707050254,-1119.92,0.00017808,2]
[402558114,1768707050264,-675.98,0.00017808,2]
[402558116,1768707050273,-500.0,0.00017808,2]
[402558118,1768707050283,-194.0,0.00017808,2]
[402558120,1768707050292,-1400.0,0.0001782,2]
[402558122,1768707050302,-154.42329083,0.00017836,30]
[402558124,1768707050311,-1400.0,0.00017844,2]
[402558126,1768707050320,-781.50788464,0.00017848,15]
[402558128,1768707050329,-160.44779279,0.00017874,2]
[402558130,1768707050339,-553.64373807,0.00017911,2]
[402558132,1768707050348,-2674.60743027,0.00017911,2]
[402558134,1768707050358,-154.42329083,0.00017918,30]
[402558136,1768707050368,-1400.0,0.00017935,2]
[402558138,1768707050377,-1400.0,0.00017948,2]
[402558140,1768707050386,-500.0,0.00017961,2]
[402558142,1768707050396,-781.50788464,0.00017962,16]
[402558144,1768707050406,-160.0,0.00017962,4]
[402558146,1768707050415,-729.0,0.0001798,2]
[402558148,1768707050425,-729.0,0.0001798,2]
[402558150,1768707050434,-728.0,0.0001798,2]
[402558152,1768707050443,-29000.0,0.00018,2]
[402558154,1768707050452,-155.37126646,0.00018,2]
[402558156,1768707050463,-1500.0,0.00018,2]
[402558158,1768707050476,-2001.45873043,0.00018,2]
[402558160,1768707050485,-154.42329083,0.00018,30]
[402558162,1768707050495,-260.20663869,0.00018,2]
[402558164,1768707050506,-1400.0,0.00018012,2]
[402558166,1768707050515,-500.0,0.00018032,2]
[402558168,1768707050525,-781.50788464,0.00018075,18]
[402558170,1768707050534,-1400.0,0.00018078,2]
[402558172,1768707050544,-500.0,0.00018082,3]
[402558174,1768707050553,-500.0,0.00018082,2]
[402558176,1768707050563,-500.0,0.00018082,2]
[402558178,1768707050572,-500.0,0.00018082,2]
[402558180,1768707050581,-1023.55,0.00018082,2]
[402558182,1768707050590,-812.39,0.00018082,2]
[402558184,1768707050600,-558.73,0.00018082,2]
[402558186,1768707050609,-500.0,0.00018082,2]
[402558188,1768707050619,-500.0,0.00018082,2]
[402558190,1768707050628,-500.0,0.00018082,2]
[402558192,1768707050637,-971.69,0.00018082,2]
[402558194,1768707050647,-898.84,0.00018082,2]
[402558196,1768707050656,-500.0,0.00018082,2]
[402558198,1768707050666,-500.0,0.00018082,2]
[402558200,1768707050675,-500.0,0.00018082,2]
[402558202,1768707050684,-511.15,0.00018082,2]
[402558204,1768707050693,-376.42997307,0.00018082,2]
[402558206,1768707050703,-582.14,0.00018082,2]
[402558208,1768707050712,-500.0,0.00018082,2]
[402558210,1768707050721,-629.05,0.00018082,2]
[402558212,1768707050730,-500.0,0.00018082,2]
[402558214,1768707050739,-500.0,0.00018082,2]
[402558216,1768707050749,-500.0,0.00018082,2]
[402558218,1768707050759,-566.85,0.00018082,2]
[402558220,1768707050768,-800.02,0.00018082,2]
[402558222,1768707050777,-541.97,0.00018082,2]
[402558224,1768707050786,-501.89610276,0.00018082,2]
[402558226,1768707050795,-500.0,0.00018082,2]
[402558228,1768707050805,-196.29249143,0.00018082,2]
[402558231,1768707050814,-500.0,0.00018082,2]
[402558233,1768707050834,-500.0,0.00018082,2]
[402558235,1768707050844,-530.01,0.00018082,2]
[402558238,1768707050855,-524.48,0.00018082,2]
[402558240,1768707050865,-500.0,0.00018082,2]
[402558242,1768707050875,-500.0,0.00018082,2]
[402558244,1768707050885,-500.0,0.00018082,2]
[402558246,1768707050894,-972.64,0.00018082,2]
[402558248,1768707050904,-500.0,0.00018082,2]
[402558250,1768707050914,-500.0,0.00018082,2]
[402558252,1768707050924,-500.0,0.00018082,2]
[402558254,1768707050934,-500.0,0.00018082,2]
[402558256,1768707050943,-500.0,0.00018082,2]
[402558259,1768707050954,-1106.34,0.00018082,2]
[402558261,1768707050964,-732.0,0.00018082,2]
[402558263,1768707050974,-500.0,0.00018082,2]
[402558265,1768707050984,-500.0,0.00018082,2]
[402558267,1768707050994,-756.25,0.00018082,2]
[402558269,1768707051004,-500.0,0.00018082,2]
[402558271,1768707051013,-500.0,0.00018082,2]
[402558273,1768707051027,-622.13,0.00018082,2]
[402558275,1768707051037,-825.76,0.00018082,2]
[402558278,1768707051047,-551.16,0.00018082,2]
[402558280,1768707051056,-500.0,0.00018082,2]
[402558282,1768707051066,-500.0,0.00018082,2]
[402558284,1768707051076,-500.0,0.00018082,2]
[402558286,1768707051086,-636.41,0.00018082,2]
[402558288,1768707051096,-500.0,0.00018082,2]
[402558290,1768707051106,-500.0,0.00018082,2]
[402558292,1768707051117,-993.56,0.00018082,2]
[402558294,1768707051127,-629.67614556,0.00018082,2]
[402558296,1768707051136,-843.05,0.00018082,2]
[402558298,1768707051145,-384.84732457,0.00018082,2]
[402558301,1768707051156,-500.0,0.00018082,2]
[402558303,1768707051165,-500.0,0.00018082,2]
[402558305,1768707051175,-855.04,0.00018082,2]
[402558307,1768707051185,-500.0,0.00018082,2]
[402558309,1768707051195,-1119.92,0.00018082,2]
[402558311,1768707051205,-675.98,0.00018082,2]
[402558313,1768707051216,-500.0,0.00018082,2]
[402558315,1768707051226,-194.0,0.00018082,2]
[402558317,1768707051235,-166.09402,0.00018082,2]
[402558319,1768707051245,-166.09402,0.00018082,2]
[402558321,1768707051254,-166.09402,0.00018082,2]
[402558323,1768707051263,-166.09402,0.00018082,2]
[402558325,1768707051272,-153.816954,0.00018082,2]
[402558327,1768707051282,-500.0,0.000181,2]
[402558330,1768707051293,-206.688212,0.000181,7]
[402558332,1768707051303,-500.0,0.00018103,2]
[402558334,1768707051313,-1149.22677469,0.00018108,3]
[402558336,1768707051323,-154.42329083,0.0001811,30]
[402558338,1768707051337,-8751.54550248,0.00018131,2]
[402558340,1768707051347,-500.0,0.00018157,2]
[402558342,1768707051356,-38000.0,0.00018174,3]
[402558344,1768707051367,-233.446873,0.00018175,2]
[402558347,1768707051377,-233.446873,0.00018175,2]
[402558349,1768707051387,-38000.0,0.00018183,3]
[402558351,1768707051397,-781.50788464,0.00018189,19]
[402558353,1768707051407,-154.42329083,0.00018192,30]
[402558355,1768707051416,-38000.0,0.00018192,3]
[402558357,1768707051427,-500.0,0.00018195,2]
[402558359,1768707051437,-2687.26070356,0.00018201,3]
[402558391,1768707051732,884.16,0.00027397,120]
[402558397,1768707051787,830.25,0.00027397,120]
[402558405,1768707051850,884.16,0.00027397,120]
[402558411,1768707051901,830.25,0.00027397,120]
[402558421,1768707051986,884.16,0.00027397,120]
[402558428,1768707052040,830.25,0.00027397,120]
[402558434,1768707052085,884.16,0.00027397,120]
[402558441,1768707052145,830.25,0.00027397,120]
[402558447,1768707052197,884.16,0.00027397,120]
[402558454,1768707052248,830.25,0.00027397,120]
[402558460,1768707052303,884.16,0.00027397,120]
[402558467,1768707052359,830.25,0.00027397,120]
[402558475,1768707052422,884.16,0.00027397,120]
[402558483,1768707052495,830.31408397,0.00027397,120]
[402558490,1768707052554,884.16,0.00027397,120]
[402558497,1768707052616,884.16,0.00027397,120]
[402558506,1768707052688,-348.0,0.00016489,2]
[402558508,1768707052700,-233.446873,0.00016986,2]
[402558510,1768707052711,-233.446873,0.0001701,2]
[402558513,1768707052723,-233.446873,0.00017776,2]
[402558515,1768707052735,-233.446873,0.00017776,2]
[402558517,1768707052746,-233.446873,0.00018175,2]
[402558519,1768707052757,-233.446873,0.00018175,2]
[402558521,1768707052767,-4212.43223903,0.00018201,3]
[402558528,1768707052820,884.16,0.00027397,120]
[402558538,1768707052901,884.16,0.00027397,120]
[402558546,1768707052973,884.16,0.00027397,120]
[402558553,1768707053031,884.16,0.00027397,120]
[402558563,1768707053118,884.33548927,0.00027397,120]
[402558580,1768707053270,500.0,0.00027397,120]
[402558589,1768707053341,500.0,0.00027397,120]
[402558597,1768707053413,500.0,0.00027397,120]
[402558605,1768707053483,500.0,0.00027397,120]
[402558612,1768707053545,500.0,0.00027397,120]
[402558623,1768707053639,500.0,0.00027397,120]
[402558633,1768707053729,500.0,0.00027397,120]
[402558642,1768707053816,500.0,0.00027397,120]
[402558652,1768707053895,500.0,0.00027397,120]
[402558668,1768707054043,500.0,0.00027397,120]
[402558675,1768707054105,500.0,0.00027397,120]
[402558691,1768707054260,500.0,0.00027397,120]
[402558695,1768707054326,500.0,0.00027397,120]
[402558696,1768707054390,500.0,0.00027397,120]
[402558701,1768707054441,501.5941143,0.00027397,120]
[402558708,1768707054504,447.98423897,0.00027397,120]
[402558710,1768707054524,-200.0,0.00015052,2]
[402558713,1768707054535,-200.0,0.00015052,2]
[402558714,1768707054546,-200.3290573,0.00015052,2]
[402558715,1768707054556,-200.0,0.00015052,2]
[402558716,1768707054566,-200.0,0.00015052,2]
[402558717,1768707054576,-200.22687751,0.00015052,2]
[402558718,1768707054586,-200.0,0.00015052,2]
[402558719,1768707054596,-200.0,0.00015052,2]
[402558720,1768707054606,-175.66312212,0.00015052,2]
[402558721,1768707054615,-348.0,0.00016489,2]
[402558722,1768707054625,-1885.22304469,0.00018201,3]
[402558723,1768707054642,-5349.73926824,0.00018201,3]
[402558724,1768707054879,500.0,0.00027397,120]
[402558725,1768707054945,240.94222521,0.00027397,120]
[402558726,1768707055014,500.0,0.00027397,120]
[402558727,1768707055111,538.7725108,0.00027397,120]
[402558728,1768707055277,500.0,0.00027397,120]
[402558729,1768707055334,500.0,0.00027397,120]
[402558730,1768707055386,500.0,0.00027397,120]
[402558737,1768707056284,536.43523099,0.00027397,120]
[402558738,1768707056598,645.99245678,0.00027397,120]
[402558816,1768707057816,500.31553934,0.00027397,120]
[402558842,1768707058060,500.0,0.00027397,120]
[402558870,1768707058319,500.0,0.00027397,120]
[402558895,1768707058556,500.0,0.00027397,120]
[402558925,1768707058914,500.0,0.00027397,120]
[402559161,1768707061186,500.0,0.00027397,120]
[402559187,1768707061432,500.0,0.00027397,120]
[402559246,1768707062009,500.0,0.00027397,120]
[402559272,1768707062259,500.0,0.00027397,120]
[402559294,1768707062485,500.0,0.00027397,120]
[402559301,1768707062535,551.48831723,0.00027397,120]
[402559320,1768707062723,500.0,0.00027397,120]
[402559344,1768707062963,500.0,0.00027397,120]
[402559377,1768707063549,500.0,0.00027397,120]
[402559401,1768707063781,500.0,0.00027397,120]
[402559426,1768707064018,500.0,0.00027397,120]
[402559433,1768707064075,500.0,0.00027397,120]
[402559454,1768707064253,500.0,0.00027397,120]
[402559462,1768707064323,500.0,0.00027397,120]
[402559481,1768707064518,500.0,0.00027397,120]
[402559487,1768707064569,281.58050187,0.00027397,120]
[402559506,1768707064744,500.0,0.00027397,120]
[402559530,1768707064976,500.0,0.00027397,120]
[402559536,1768707065023,500.0,0.00027397,120]
[402559558,1768707065240,500.0,0.00027397,120]
[402559564,1768707065288,500.0,0.00027397,120]
[402559580,1768707065443,500.0,0.00027397,120]
[402559586,1768707065492,500.0,0.00027397,120]
[402559592,1768707065677,500.0,0.00027397,120]
[402559593,1768707065724,504.37379339,0.00027397,120]
[402559594,1768707065785,500.0,0.00027397,120]
[402559595,1768707065912,500.0,0.00027397,120]
[402559596,1768707066015,500.0,0.00027397,120]
[402559613,1768707066184,500.0,0.00027397,120]
[402559633,1768707066392,500.0,0.00027397,120]
[402559639,1768707066444,173.29349929,0.00027397,120]
[402559655,1768707066602,500.0,0.00027397,120]
[402559661,1768707066650,500.0,0.00027397,120]
[402559682,1768707066857,500.0,0.00027397,120]
[402559687,1768707066906,500.0,0.00027397,120]
[402559706,1768707067092,500.0,0.00027397,120]
[402559712,1768707067139,500.0,0.00027397,120]
[402559731,1768707067324,548.77908891,0.00027397,120]
[402559737,1768707067372,500.0,0.00027397,120]
[402559747,1768707067464,500.0,0.00027397,120]
[402559753,1768707067517,607.79,0.00027397,120]
[402559761,1768707067593,500.0,0.00027397,120]
[402559782,1768707067806,607.79,0.00027397,120]
[402559789,1768707067858,500.0,0.00027397,120]
[402559826,1768707068219,607.79,0.00027397,120]
[402559833,1768707068274,500.0,0.00027397,120]
[402559840,1768707068337,500.68897947,0.00027397,120]
[402559846,1768707068392,607.79,0.00027397,120]
[402559852,1768707068441,500.0,0.00027397,120]
[402559862,1768707068540,607.79,0.00027397,120]
[402559868,1768707068593,500.0,0.00027397,120]
[402559884,1768707068771,607.79,0.00027397,120]
[402559891,1768707068831,500.0,0.00027397,120]
[402559910,1768707069021,607.79,0.00027397,120]
[402559916,1768707069070,500.0,0.00027397,120]
[402559935,1768707069250,607.79,0.00027397,120]
[402559942,1768707069304,500.0,0.00027397,120]
[402559960,1768707069476,607.79,0.00027397,120]
[402559969,1768707069556,500.0,0.00027397,120]
[402559983,1768707069680,187.49,0.00012262,2]
[402559987,1768707069730,607.79,0.00027397,120]
[402559993,1768707069789,500.0,0.00027397,120]
[402560005,1768707069932,607.79,0.00027397,120]
[402560013,1768707070025,500.0,0.00027397,120]
[402560027,1768707070191,607.79,0.00027397,120]
[402560035,1768707070268,500.0,0.00027397,120]
[402560049,1768707070414,607.79,0.00027397,120]
[402560056,1768707070485,500.0,0.00027397,120]
[402560073,1768707070672,607.79,0.00027397,120]
[402560079,1768707070718,500.0,0.00027397,120]
[402560084,1768707070764,500.0,0.00027397,120]
[402560097,1768707070907,607.79,0.00027397,120]
[402560102,1768707070955,200.75652151,0.00027397,120]
[402560120,1768707071133,607.79,0.00027397,120]
[402560150,1768707071455,607.79,0.00027397,120]
[402560155,1768707071507,500.0,0.00027397,120]
[402560173,1768707071700,607.79,0.00027397,120]
[402560179,1768707071749,500.0,0.00027397,120]
[402560213,1768707072121,500.0,0.00027397,120]
[402560218,1768707072168,607.79,0.00027397,120]
[402560223,1768707072219,8016.0,0.00027397,120]
[402560229,1768707072271,205.98178239,0.00027397,120]
[402560234,1768707072316,607.79,0.00027397,120]
[402560244,1768707072415,607.79,0.00027397,120]
[402560262,1768707072618,500.0,0.00027397,120]
[402560268,1768707072671,607.79,0.00027397,120]
[402560286,1768707072862,607.79,0.00027397,120]
[402560309,1768707073109,607.95150472,0.00027397,120]
[402560369,1768707074377,500.0,0.00027397,120]
[402560428,1768707074947,500.85687664,0.00027397,120]
[402560469,1768707075342,500.54546542,0.00027397,120]
[402560471,1768707075439,500.0,0.00027397,120]
[402560472,1768707075665,500.0,0.00027397,120]
[402560473,1768707075894,500.99094023,0.00027397,120]
[402560474,1768707076101,500.0,0.00027397,120]
[402560475,1768707076480,500.0,0.00027397,120]
[402560476,1768707076723,500.0,0.00027397,120]
[402560477,1768707076951,500.0,0.00027397,120]
[402560478,1768707077153,500.0,0.00027397,120]
[402560479,1768707077201,500.0,0.00027397,120]
[402560480,1768707077375,505.47852003,0.00027397,120]
[402560481,1768707077445,500.0,0.00027397,120]
[402560482,1768707077863,500.0,0.00027397,120]
[402560483,1768707077923,500.0,0.00027397,120]
[402560484,1768707077991,500.0,0.00027397,120]
[402560485,1768707078162,500.0,0.00027397,120]
[402560486,1768707078213,500.0,0.00027397,120]
[402560487,1768707078421,500.0,0.00027397,120]
[402560488,1768707078470,500.0,0.00027397,120]
[402560489,1768707078676,500.0,0.00027397,120]
[402560490,1768707078724,500.0,0.00027397,120]
[402560491,1768707078912,500.0,0.00027397,120]
[402560492,1768707078964,500.0,0.00027397,120]
[402560493,1768707079130,562.54472516,0.00027397,120]
[402560494,1768707079179,500.0,0.00027397,120]
[402560495,1768707079368,500.0,0.00027397,120]
[402560496,1768707079606,500.0,0.00027397,120]
[402560497,1768707079882,500.0,0.00027397,120]
[402560498,1768707080086,500.0,0.00027397,120]
[402560499,1768707080138,500.0,0.00027397,120]
[402560500,1768707080363,500.0,0.00027397,120]
[402560501,1768707080631,500.0,0.00027397,120]
[402560502,1768707080864,500.0,0.00027397,120]
[402560503,1768707081517,500.0,0.00027397,120]
[402560504,1768707081745,500.0,0.00027397,120]
[402560505,1768707081980,500.0,0.00027397,120]
[402560506,1768707082338,500.0,0.00027397,120]
[402560507,1768707082455,500.0,0.00027397,120]
[402560508,1768707082701,500.0,0.00027397,120]
[402560509,1768707082950,396.60507008,0.00027397,120]
[402560510,1768707084009,500.0,0.00027397,120]
[402560511,1768707085645,500.0,0.00027397,120]
[402560512,1768707087407,500.0,0.00027397,120]
[402560513,1768707087632,500.0,0.00027397,120]
[402560514,1768707087945,501.08207213,0.00027397,120]
[402560515,1768707089626,500.0,0.00027397,120]
[402560523,1768707092241,501.57088913,0.00027397,120]
[402560524,1768707092941,170.4312501,7.656e-05,2]
[402560525,1768707096250,609.3,0.00027397,120]
[402560526,1768707096485,609.3,0.00027397,120]
[402560527,1768707096817,674.13,0.00027397,120]
[402560528,1768707097045,674.13,0.00027397,120]
[402560529,1768707097268,674.13,0.00027397,120]
[402560530,1768707097497,674.13,0.00027397,120]
[402560531,1768707097737,674.13,0.00027397,120]
[402560532,1768707097963,674.13,0.00027397,120]
[402560533,1768707098186,674.13,0.00027397,120]
[402560534,1768707098726,500.0,0.00027397,120]
[402560535,1768707098801,674.13,0.00027397,120]
[402560536,1768707099035,674.13,0.00027397,120]
[402560537,1768707099257,674.13,0.00027397,120]
[402560538,1768707099435,500.0,0.00027397,120]
[402560539,1768707099492,674.13,0.00027397,120]
[402560540,1768707099660,500.95284663,0.00027397,120]
[402560541,1768707099724,674.13,0.00027397,120]
[402560542,1768707099958,674.13,0.00027397,120]
[402560543,1768707100228,674.13,0.00027397,120]
[402560544,1768707100356,609.3,0.00027397,120]
[402560545,1768707100507,674.13,0.00027397,120]
[402560546,1768707100614,609.3,0.00027397,120]
[402560547,1768707100662,500.0,0.00027397,120]
[402560548,1768707100743,674.13,0.00027397,120]
[402560549,1768707100848,609.3,0.00027397,120]
[402560550,1768707100894,500.0,0.00027397,120]
[402560551,1768707101007,674.13,0.00027397,120]
[402560552,1768707101089,609.3,0.00027397,120]
[402560553,1768707101134,500.0,0.00027397,120]
[402560554,1768707101255,674.13,0.00027397,120]
[402560555,1768707101307,500.0,0.00027397,120]
[402560556,1768707101353,609.3,0.00027397,120]
[402560557,1768707101398,500.0,0.00027397,120]
[402560558,1768707101493,674.13,0.00027397,120]
[402560559,1768707101577,609.3,0.00027397,120]
[402560560,1768707101623,500.0,0.00027397,120]
[402560561,1768707101773,674.13,0.00027397,120]
[402560562,1768707101826,609.3,0.00027397,120]
[402560563,1768707101875,500.0,0.00027397,120]
[402560564,1768707102025,674.13,0.00027397,120]
[402560565,1768707102077,609.3,0.00027397,120]
[402560566,1768707102125,500.0,0.00027397,120]
[402560567,1768707102311,674.13,0.00027397,120]
[402560568,1768707102360,609.3,0.00027397,120]
[402560569,1768707102412,500.0,0.00027397,120]
[402560570,1768707102562,674.13,0.00027397,120]
[402560571,1768707102825,500.0,0.00027397,120]
[402560572,1768707102873,609.3,0.00027397,120]
[402560573,1768707102919,674.33691975,0.00027397,120]
[402560574,1768707102971,500.0,0.00027397,120]
[402560575,1768707103017,609.3,0.00027397,120]
[402560576,1768707103116,500.0,0.00027397,120]
[402560577,1768707103254,609.3,0.00027397,120]
[402560578,1768707103354,500.0,0.00027397,120]
[402560579,1768707103489,609.3,0.00027397,120]
[402560580,1768707103586,500.0,0.00027397,120]
[402560581,1768707103711,609.3,0.00027397,120]
[402560582,1768707103811,500.0,0.00027397,120]
[402560583,1768707103941,609.3,0.00027397,120]
[402560584,1768707104051,500.0,0.00027397,120]
[402560585,1768707104164,609.3,0.00027397,120]
[402560586,1768707104243,500.0,0.00027397,120]
[402560587,1768707104298,500.0,0.00027397,120]
[402560588,1768707104407,609.3,0.00027397,120]
[402560589,1768707104536,500.0,0.00027397,120]
[402560590,1768707104633,609.3,0.00027397,120]
[402560591,1768707104758,500.0,0.00027397,120]
[402560592,1768707104849,609.3,0.00027397,120]
[402560593,1768707104977,636.60162185,0.00027397,120]
[402560594,1768707105094,609.3,0.00027397,120]
[402560595,1768707105329,609.3,0.00027397,120]
[402560596,1768707105567,609.34242096,0.00027397,120]
[402560597,1768707106198,500.0,0.00027397,120]
[402560598,1768707106369,597.95,0.00027397,120]
[402560599,1768707106605,597.95,0.00027397,120]
[402560600,1768707106836,597.95,0.00027397,120]
[402560601,1768707107066,597.95,0.00027397,120]
[402560602,1768707107284,597.95,0.00027397,120]
[402560603,1768707107694,597.95,0.00027397,120]
[402560604,1768707107757,597.95,0.00027397,120]
[402560605,1768707107811,500.0,0.00027397,120]
[402560606,1768707108007,597.95,0.00027397,120]
[402560607,1768707108074,500.0,0.00027397,120]
[402560608,1768707108267,597.95,0.00027397,120]
[402560609,1768707108311,500.0,0.00027397,120]
[402560610,1768707108495,597.95,0.00027397,120]
[402560611,1768707108547,500.0,0.00027397,120]
[402560612,1768707108727,597.95,0.00027397,120]
[402560613,1768707108797,500.0,0.00027397,120]
[402560614,1768707108969,597.95,0.00027397,120]
[402560615,1768707109051,500.0,0.00027397,120]
[402560616,1768707109515,500.0,0.00027397,120]
[402560617,1768707109803,500.0,0.00027397,120]
[402560618,1768707109872,500.0,0.00027397,120]
[402560619,1768707110015,501.14196509,0.00027397,120]
[402560620,1768707110064,500.0,0.00027397,120]
[402560621,1768707110110,500.0,0.00027397,120]
[402560622,1768707110277,500.0,0.00027397,120]
[402560623,1768707110327,500.0,0.00027397,120]
[402560624,1768707110430,500.0,0.00027397,120]
[402560625,1768707110503,500.0,0.00027397,120]
[402560626,1768707110585,500.0,0.00027397,120]
[402560627,1768707110653,552.72683648,0.00027397,120]
[402560628,1768707110761,500.0,0.00027397,120]
[402560629,1768707110823,500.0,0.00027397,120]
[402560630,1768707111012,500.0,0.00027397,120]
[402560631,1768707111062,500.0,0.00027397,120]
[402560632,1768707111245,500.0,0.00027397,120]
[402560633,1768707111291,500.0,0.00027397,120]
[402560634,1768707111512,500.0,0.00027397,120]
[402560635,1768707111569,500.0,0.00027397,120]
[402560636,1768707111742,500.0,0.00027397,120]
[402560637,1768707111818,500.0,0.00027397,120]
[402560638,1768707111987,500.0,0.00027397,120]
[402560639,1768707112059,500.0,0.00027397,120]
[402560640,1768707112219,500.0,0.00027397,120]
[402560641,1768707112266,500.0,0.00027397,120]
[402560642,1768707112318,500.0,0.00027397,120]
[402560643,1768707112461,500.0,0.00027397,120]
[402560644,1768707112511,500.0,0.00027397,120]
[402560645,1768707112560,500.0,0.00027397,120]
[402560646,1768707112710,500.0,0.00027397,120]
[402560647,1768707112791,557.18859226,0.00027397,120]
[402560648,1768707113007,500.62769443,0.00027397,120]
[402560649,1768707113055,500.0,0.00027397,120]
[402560650,1768707113105,500.0,0.00027397,120]